bitfinex/quotes_BTCUSD_20250624
["timestamp","ask_amount","ask_price","bid_price","bid_amount"]
[1750769291236,1.01373165,105260.0,105250.0,0.00029836]
[1750769291439,1.98724309,105260.0,105250.0,0.00029836]
[1750769291674,1.54381724,105260.0,105250.0,0.00029836]
[1750769293356,1.54381724,105260.0,105250.0,0.00129836]
[1750769294331,1.54381724,105260.0,105250.0,0.00229836]
[1750769294628,1.98724309,105260.0,105250.0,0.01118487]
[1750769294878,1.98724309,105260.0,105250.0,0.00229836]
[1750769295111,0.57072475,105250.0,105240.0,0.00219801]
[1750769295328,1.95037645,105250.0,105240.0,0.00219801]
[1750769296037,1.95997545,105250.0,105240.0,0.00219801]
[1750769296244,2.0030663,105250.0,105240.0,0.00219801]
[1750769296454,2.0310159,105250.0,105240.0,0.00219801]
[1750769296904,1.58859005,105250.0,105240.0,0.00219801]
[1750769297143,1.58959005,105250.0,105240.0,0.00219801]
[1750769297372,1.55335011,105250.0,105240.0,0.20174181]
[1750769297823,1.5438492,105250.0,105240.0,0.00219801]
[1750769298258,1.10042335,105250.0,105240.0,0.2017419]
[1750769298473,1.5438492,105250.0,105240.0,0.2112439]
[1750769298694,1.36332564,105250.0,105240.0,0.35714893]
[1750769299146,1.35382491,105250.0,105240.0,0.35714893]
[1750769299573,0.91039906,105250.0,105240.0,0.35714893]
[1750769299831,0.92940043,105250.0,105240.0,0.35714893]
[1750769300052,0.90085034,105250.0,105240.0,0.35714893]
[1750769300271,0.89034961,105250.0,105240.0,0.35714893]
[1750769300740,0.85289946,105250.0,105240.0,0.35714893]
[1750769300958,0.87190101,105250.0,105240.0,0.35714893]
[1750769301168,1.31532686,105250.0,105240.0,0.35714893]
[1750769301385,1.31432686,105250.0,105240.0,0.35714893]
[1750769301860,1.32382786,105250.0,105240.0,0.35714893]
[1750769302268,1.51385161,105250.0,105240.0,0.35714893]
[1750769302502,1.32382786,105250.0,105240.0,0.35714893]
[1750769302739,1.32382786,105250.0,105240.0,0.84184893]
[1750769303170,1.33332895,105250.0,105240.0,0.84184893]
[1750769303414,1.52335342,105250.0,105240.0,0.82574893]
[1750769303645,1.33332967,105250.0,105240.0,0.82574893]
[1750769304076,1.28582485,105250.0,105240.0,0.85744893]
[1750769304295,0.842399,105250.0,105240.0,0.95744893]
[1750769304728,0.85189937,105250.0,105240.0,0.95744893]
[1750769304942,0.842399,105250.0,105240.0,0.95744893]
[1750769305148,0.85189937,105250.0,105240.0,0.95944893]
[1750769305372,0.86139992,105250.0,105240.0,0.95944893]
[1750769305582,0.86139992,105250.0,105240.0,0.96144893]
[1750769307416,1.30482577,105250.0,105240.0,0.96144893]
[1750769308440,1.29532522,105250.0,105240.0,0.96144893]
[1750769308770,1.30482577,105250.0,105240.0,0.96144893]
[1750769308980,1.30482568,105250.0,105240.0,0.96144893]
[1750769309467,1.31432623,105250.0,105240.0,0.96144893]
[1750769309801,1.30482568,105250.0,105240.0,0.96144893]
[1750769310114,0.86139983,105250.0,105240.0,0.96144893]
[1750769310304,1.154689,105250.0,105240.0,0.96144893]
[1750769310725,1.14518836,105250.0,105240.0,0.96144893]
[1750769311237,1.154689,105250.0,105240.0,0.96144893]
[1750769311436,1.14518836,105250.0,105240.0,0.96144893]
[1750769312649,1.1356879,105250.0,105240.0,0.96144893]
[1750769312880,1.12618753,105250.0,105240.0,0.96144893]
[1750769315279,1.1356879,105250.0,105240.0,0.96144893]
[1750769315887,1.12618753,105250.0,105240.0,0.96144893]
[1750769318012,0.63338753,105250.0,105240.0,0.96144893]
[1750769319585,0.6428879,105250.0,105240.0,0.96144893]
[1750769320299,0.63338753,105250.0,105240.0,0.96144893]
[1750769320920,0.6428879,105250.0,105240.0,0.96144893]
[1750769321776,0.65238845,105250.0,105240.0,0.96144893]
[1750769322013,0.65238836,105250.0,105240.0,0.96144893]
[1750769322221,0.6428879,105250.0,105240.0,0.96144893]
[1750769322513,0.63338753,105250.0,105240.0,0.96144893]
[1750769323074,0.63338753,105250.0,105240.0,0.92974893]
[1750769323540,0.64288799,105250.0,105240.0,0.92974893]
[1750769323754,0.63338753,105250.0,105240.0,0.92974893]
[1750769323982,0.349599,105250.0,105240.0,0.96104893]
[1750769324205,0.00013807,105260.0,105250.0,0.89982621]
[1750769324420,0.00013807,105260.0,105250.0,0.99532807]
[1750769324857,0.34013807,105260.0,105250.0,0.99532807]
[1750769325317,0.6239266,105260.0,105250.0,0.99532807]
[1750769326399,0.63358103,105260.0,105250.0,0.99532807]
[1750769327733,0.66208016,105260.0,105250.0,0.96402807]
[1750769327950,0.65258024,105260.0,105250.0,0.96402807]
[1750769328165,0.63358103,105260.0,105250.0,0.96402807]
[1750769328590,0.63358103,105260.0,105250.0,0.98062807]
[1750769329014,0.63358103,105260.0,105250.0,0.99612807]
[1750769330572,0.3497925,105260.0,105250.0,0.99612807]
[1750769330841,0.3497925,105260.0,105250.0,1.09612807]
[1750769333155,0.3497925,105260.0,105250.0,1.10012807]
[1750769334120,0.3497925,105260.0,105250.0,1.09912807]
[1750769334538,0.34,105270.0,105260.0,0.21850546]
[1750769334797,0.34,105270.0,105260.0,0.44560732]
[1750769335234,0.62378853,105270.0,105260.0,0.44560732]
[1750769335657,0.62378853,105270.0,105260.0,0.44760732]
[1750769335870,0.62378853,105270.0,105260.0,0.44860732]
[1750769336542,0.63310081,105270.0,105260.0,0.44860732]
[1750769336761,0.63310081,105270.0,105260.0,0.41700732]
[1750769338522,0.34931228,105270.0,105260.0,0.41700732]
[1750769338751,0.63310081,105270.0,105260.0,0.41700732]
[1750769340140,0.64259947,105270.0,105260.0,0.41700732]
[1750769340417,0.64259947,105270.0,105260.0,0.4170075]
[1750769340418,0.94538577,105270.0,105260.0,0.4170075]
[1750769340671,1.15817548,105270.0,105260.0,0.19850186]
[1750769341124,1.14867628,105270.0,105260.0,0.39800784]
[1750769341328,1.14867628,105270.0,105260.0,0.19850186]
[1750769342442,1.14867628,105270.0,105260.0,0.103]
[1750769345068,1.65601713,105270.0,105260.0,0.08507]
[1750769345295,1.65601713,105270.0,105260.0,0.003]
[1750769345540,0.57932548,105250.0,105240.0,0.50219801]
[1750769345757,1.14690254,105250.0,105240.0,0.60233608]
[1750769346194,1.14690254,105250.0,105240.0,0.57991458]
[1750769346434,1.14690254,105250.0,105240.0,0.04798908]
[1750769346435,1.65424339,105250.0,105240.0,0.04798908]
[1750769346643,0.53007793,105220.0,105210.0,0.5002]
[1750769346862,1.13865879,105220.0,105210.0,0.70520665]
[1750769347080,0.85487026,105220.0,105210.0,0.69570186]
[1750769347293,0.89292779,105220.0,105210.0,0.88579785]
[1750769347507,0.66184579,105220.0,105210.0,0.92381557]
[1750769347712,0.68085294,105220.0,105210.0,0.92381557]
[1750769347921,0.3875607,105220.0,105210.0,0.92381557]
[1750769348149,0.67134923,105220.0,105210.0,0.92381557]
[1750769348365,0.68085294,105220.0,105210.0,0.92381557]
[1750769349006,0.66184579,105220.0,105210.0,0.92381557]
[1750769349213,0.67134923,105220.0,105210.0,0.92381557]
[1750769349419,0.69924805,105220.0,105210.0,0.92381557]
[1750769349635,0.69924805,105220.0,105210.0,0.92481557]
[1750769349844,0.69924814,105220.0,105210.0,0.92481557]
[1750769350092,0.69924814,105220.0,105210.0,0.90580716]
[1750769350302,0.74025176,105220.0,105210.0,0.91531141]
[1750769350939,0.71174135,105220.0,105210.0,0.92481557]
[1750769351152,0.68024135,105220.0,105210.0,0.92481557]
[1750769351779,0.65234253,105220.0,105210.0,0.92481557]
[1750769352005,0.34,105220.0,105210.0,0.95851557]
[1750769352221,0.34,105220.0,105210.0,1.10851557]
[1750769355020,0.21411819,105220.0,105210.0,1.10851557]
[1750769358995,0.21411819,105220.0,105210.0,1.19851557]
[1750769359249,0.6576684,105220.0,105210.0,0.71581557]
[1750769359451,0.6576684,105220.0,105210.0,1.01581557]
[1750769359662,0.6576684,105220.0,105210.0,0.92581557]
[1750769359876,0.21411819,105220.0,105210.0,0.92581557]
[1750769360089,0.22362127,105220.0,105210.0,0.92581557]
[1750769360540,0.21411819,105220.0,105210.0,0.92581557]
[1750769361158,0.2331248,105220.0,105210.0,0.92581557]
[1750769361360,0.70777501,105220.0,105210.0,0.92581575]
[1750769361586,0.71727854,105220.0,105210.0,0.92581575]
[1750769361790,0.72678225,105220.0,105210.0,0.92581584]
[1750769361994,0.75533425,105220.0,105210.0,0.92581593]
[1750769362221,0.93590937,105220.0,105210.0,0.39770186]
[1750769362433,0.93590937,105220.0,105210.0,0.59730264]
[1750769362631,0.93590937,105220.0,105210.0,0.39770186]
[1750769362848,1.42870937,105220.0,105210.0,0.19770186]
[1750769363063,1.43374669,105220.0,105210.0,0.1022]
[1750769363271,1.43374669,105220.0,105210.0,0.102]
[1750769363502,1.43374669,105220.0,105210.0,0.002]
[1750769364249,1.43374669,105220.0,105210.0,0.001]
[1750769364451,0.5705006,105210.0,105200.0,0.002]
[1750769364665,1.01405081,105210.0,105200.0,0.002]
[1750769365765,1.0151383,105210.0,105200.0,0.002]
[1750769368339,1.5079383,105210.0,105200.0,0.002]
[1750769372197,1.5364983,105210.0,105200.0,0.002]
[1750769372846,1.55103915,105210.0,105200.0,0.002]
[1750769375187,1.5364983,105210.0,105200.0,0.002]
[1750769375416,1.54600282,105210.0,105200.0,0.002]
[1750769375689,1.51510282,105210.0,105200.0,0.30662723]
[1750769375918,1.33451045,105210.0,105200.0,0.32563764]
[1750769376167,0.52244749,105210.0,105200.0,0.45673764]
[1750769376437,1.12733713,105210.0,105200.0,0.54673764]
[1750769376661,0.77783306,105210.0,105200.0,0.54673764]
[1750769376883,1.11783306,105210.0,105200.0,0.54673764]
[1750769377351,1.12733713,105210.0,105200.0,0.54673764]
[1750769377799,1.11683306,105210.0,105200.0,0.54673764]
[1750769378238,1.12633704,105210.0,105200.0,0.54873764]
[1750769378438,1.11683306,105210.0,105200.0,0.54873764]
[1750769379719,1.12633713,105210.0,105200.0,0.54873764]
[1750769380154,0.64304129,105210.0,105200.0,0.51763764]
[1750769381032,0.62403306,105210.0,105200.0,0.51763764]
[1750769381443,0.63353704,105210.0,105200.0,0.51763764]
[1750769382420,0.62403306,105210.0,105200.0,0.51763764]
[1750769382830,0.62403306,105210.0,105200.0,0.53363764]
[1750769383254,0.34008749,105210.0,105200.0,0.55013764]
[1750769383462,0.62403306,105210.0,105200.0,0.55013764]
[1750769384218,0.34008749,105210.0,105200.0,0.55013764]
[1750769386105,0.34008749,105210.0,105200.0,0.54913764]
[1750769386442,0.34008749,105210.0,105200.0,0.55213764]
[1750769386659,0.34008749,105210.0,105200.0,0.55113764]
[1750769387179,0.34108749,105210.0,105200.0,0.55213764]
[1750769387588,0.34108749,105210.0,105200.0,0.55613764]
[1750769391855,0.32563986,105210.0,105200.0,0.84008321]
[1750769392194,0.32563986,105210.0,105200.0,0.55613764]
[1750769394287,0.60958543,105210.0,105200.0,0.55613764]
[1750769394878,0.32563986,105210.0,105200.0,0.55613764]
[1750769396681,0.32563986,105210.0,105200.0,0.84008321]
[1750769397312,0.001,105210.0,105200.0,0.84008321]
[1750769397734,0.001,105210.0,105200.0,1.55462406]
[1750769400332,0.001,105210.0,105200.0,1.27067849]
[1750769401841,9.696e-05,105210.0,105200.0,1.27067849]
[1750769402056,9.696e-05,105210.0,105200.0,1.25613764]
[1750769403195,9.696e-05,105210.0,105200.0,1.55462406]
[1750769403423,9.64e-06,105210.0,105200.0,1.55462406]
[1750769404122,9.64e-06,105210.0,105200.0,1.27067849]
[1750769404328,9.64e-06,105210.0,105200.0,1.55462406]
[1750769404548,0.62394557,105240.0,105230.0,0.86856775]
[1750769404549,0.36490127,105240.0,105230.0,0.86856775]
[1750769404755,0.3716,105240.0,105230.0,0.96406961]
[1750769405824,0.65554557,105240.0,105230.0,0.96406961]
[1750769406724,0.62394557,105240.0,105230.0,0.96406961]
[1750769410826,0.62494557,105240.0,105230.0,1.06406961]
[1750769411497,0.65584557,105240.0,105230.0,1.03556172]
[1750769411732,0.96729603,105240.0,105230.0,0.77357233]
[1750769411979,0.97679803,105240.0,105230.0,0.62457242]
[1750769412184,0.96729603,105240.0,105230.0,0.60556743]
[1750769412393,1.15733783,105240.0,105230.0,0.59606471]
[1750769412606,1.15733783,105240.0,105230.0,0.58756172]
[1750769412817,1.13833484,105240.0,105230.0,0.19750186]
[1750769413034,1.13833484,105240.0,105230.0,0.102]
[1750769413249,1.13833484,105240.0,105230.0,0.002]
[1750769414103,1.13833484,105240.0,105230.0,0.001]
[1750769414318,0.57056267,105230.0,105220.0,0.2280916]
[1750769414505,0.85450824,105230.0,105220.0,0.41408993]
[1750769414743,0.85450824,105230.0,105220.0,0.40458631]
[1750769415373,0.85450824,105230.0,105220.0,0.41408984]
[1750769415845,0.85450824,105230.0,105220.0,0.3950826]
[1750769416066,0.85450824,105230.0,105220.0,0.3960826]
[1750769416316,0.84500543,105230.0,105220.0,0.19750186]
[1750769416950,0.84500543,105230.0,105220.0,0.39708368]
[1750769418256,0.84500543,105230.0,105220.0,0.40658748]
[1750769418674,0.84500543,105230.0,105220.0,0.41609119]
[1750769419725,0.84500543,105230.0,105220.0,0.43509834]
[1750769419935,0.84500543,105230.0,105220.0,0.43328169]
[1750769420424,0.84500543,105230.0,105220.0,0.42377816]
[1750769421273,0.84500543,105230.0,105220.0,0.43328169]
[1750769423325,0.84500543,105230.0,105220.0,0.43328124]
[1750769423743,0.86401078,105230.0,105220.0,0.4332807]
[1750769423958,0.67395029,105230.0,105220.0,0.4332807]
[1750769424168,0.68345301,105230.0,105220.0,0.4332807]
[1750769424615,0.68345292,105230.0,105220.0,0.4332807]
[1750769424823,0.69295573,105230.0,105220.0,0.4332807]
[1750769425033,0.68345292,105230.0,105220.0,0.4332807]
[1750769425240,0.6739502,105230.0,105220.0,0.4332807]
[1750769425455,0.69295564,105230.0,105220.0,0.4332807]
[1750769425657,0.68345283,105230.0,105220.0,0.4332807]
[1750769425879,0.6739502,105230.0,105220.0,0.4332807]
[1750769426095,0.68345265,105230.0,105220.0,0.5832807]
[1750769426548,0.69295528,105230.0,105220.0,0.5832807]
[1750769426757,0.68345265,105230.0,105220.0,0.5832807]
[1750769427164,0.69295528,105230.0,105220.0,0.5832807]
[1750769428105,0.68345265,105230.0,105220.0,0.5832807]
[1750769428301,0.6429502,105230.0,105220.0,0.7332807]
[1750769429753,0.65245283,105230.0,105220.0,0.7332807]
[1750769429957,0.67855564,105230.0,105220.0,0.7332807]
[1750769430160,0.69475564,105230.0,105220.0,0.7332807]
[1750769430369,0.8943184,105230.0,105220.0,0.7332807]
[1750769430986,0.70425854,105230.0,105220.0,0.7332807]
[1750769431177,0.8943184,105230.0,105220.0,0.7332807]
[1750769432304,0.88481622,105230.0,105220.0,0.714274]
[1750769432520,0.86581114,105230.0,105220.0,0.39526703]
[1750769433984,0.85630833,105230.0,105220.0,0.19568521]
[1750769434849,0.85630833,105230.0,105220.0,0.38576314]
[1750769435055,0.85630833,105230.0,105220.0,0.40477065]
[1750769436129,0.84680543,105230.0,105220.0,0.39526694]
[1750769436338,0.84680543,105230.0,105220.0,0.38576314]
[1750769437054,0.84680543,105230.0,105220.0,0.39526703]
[1750769438351,0.84680543,105230.0,105220.0,0.48526703]
[1750769438561,0.84680543,105230.0,105220.0,0.2951891]
[1750769438753,0.84680543,105230.0,105220.0,0.28568521]
[1750769440899,0.87535743,105230.0,105220.0,0.28568521]
[1750769444791,0.87535743,105230.0,105220.0,0.47576314]
[1750769445886,0.87535743,105230.0,105220.0,0.49477083]
[1750769446097,0.87535743,105230.0,105220.0,0.50427454]
[1750769447726,0.87535743,105230.0,105220.0,0.51377816]
[1750769447969,0.87535743,105230.0,105220.0,0.5137778]
[1750769448209,0.88486042,105230.0,105220.0,0.5137778]
[1750769448417,0.89436314,105230.0,105220.0,0.51377798]
[1750769448678,0.89436314,105230.0,105220.0,0.49477083]
[1750769449319,0.88486042,105230.0,105220.0,0.49477083]
[1750769449522,0.87535743,105230.0,105220.0,0.48526703]
[1750769451549,0.87535743,105230.0,105220.0,0.50427454]
[1750769452615,0.87535743,105230.0,105220.0,0.49477083]
[1750769453216,0.87535743,105230.0,105220.0,0.2951891]
[1750769453418,1.159303,105230.0,105220.0,0.28568521]
[1750769454779,1.159303,105230.0,105200.0,0.51112474]
[1750769454780,0.20910494,105210.0,105200.0,0.302]
[1750769454993,1.14879608,105210.0,105200.0,0.09750186]
[1750769455238,1.14879608,105210.0,105200.0,0.19750186]
[1750769456097,1.14879608,105210.0,105200.0,0.104]
[1750769456948,1.17735508,105210.0,105200.0,0.004]
[1750769457592,1.17735508,105210.0,105200.0,0.003]
[1750769458429,1.17735508,105210.0,105200.0,0.002]
[1750769458842,1.17935508,105210.0,105200.0,0.002]
[1750769459056,1.18035508,105210.0,105200.0,0.002]
[1750769459499,0.57081958,105200.0,105190.0,0.0002]
[1750769459704,1.13871072,105200.0,105190.0,0.10033832]
[1750769460139,0.85476515,105200.0,105190.0,0.10033832]
[1750769460558,1.13871072,105200.0,105190.0,0.10133832]
[1750769461378,1.16763723,105200.0,105190.0,0.10133832]
[1750769461599,0.19016829,105170.0,105160.0,0.54969351]
[1750769461811,0.49312996,105170.0,105160.0,0.66467445]
[1750769462717,0.28394557,105170.0,105160.0,0.70658313]
[1750769463571,0.65246627,105180.0,105170.0,0.23499244]
[1750769463785,0.65246627,105180.0,105170.0,0.3304943]
[1750769464009,0.63345226,105180.0,105170.0,0.3459943]
[1750769464223,0.65246618,105180.0,105170.0,0.3459943]
[1750769465092,0.66197351,105180.0,105170.0,0.3141943]
[1750769465298,0.65246618,105180.0,105170.0,0.3151943]
[1750769465510,0.66197332,105180.0,105170.0,0.3151943]
[1750769465729,0.34,105180.0,105170.0,0.4965943]
[1750769465941,0.63345235,105180.0,105170.0,0.4965943]
[1750769466150,0.62394557,105180.0,105170.0,0.4965943]
[1750769466599,0.34,105180.0,105170.0,0.6465943]
[1750769467711,0.34950669,105180.0,105170.0,0.6465943]
[1750769467921,0.63345226,105180.0,105170.0,0.6465943]
[1750769468140,0.63345226,105180.0,105170.0,0.61807015]
[1750769468346,0.62394557,105180.0,105170.0,0.61807015]
[1750769468558,0.34,105180.0,105170.0,0.6465943]
[1750769468766,0.62394557,105180.0,105170.0,0.6465943]
[1750769469002,0.34,105180.0,105170.0,0.6465943]
[1750769472199,0.34,105180.0,105170.0,0.93053987]
[1750769472410,0.34,105180.0,105170.0,0.6465943]
[1750769475704,0.32454793,105180.0,105170.0,0.6465943]
[1750769476273,0.32454793,105180.0,105170.0,0.7365943]
[1750769477264,0.32454793,105180.0,105170.0,0.6465943]
[1750769481985,0.62750715,105180.0,105170.0,0.6151943]
[1750769482451,0.64250715,105180.0,105170.0,0.6151943]
[1750769482657,0.65800715,105180.0,105170.0,0.6151943]
[1750769482871,0.6675142,105180.0,105170.0,0.6151943]
[1750769483337,0.65800715,105180.0,105170.0,0.6151943]
[1750769483570,1.1511174,105180.0,105170.0,0.45568652]
[1750769483784,1.14161126,105180.0,105170.0,0.29617847]
[1750769484215,1.14161126,105180.0,105170.0,0.3056867]
[1750769484470,1.13210412,105180.0,105170.0,0.09650186]
[1750769484679,1.13210412,105180.0,105170.0,0.29650186]
[1750769484895,1.13210412,105180.0,105170.0,0.49617856]
[1750769485324,1.13210412,105180.0,105170.0,0.51519484]
[1750769486177,1.12259679,105180.0,105170.0,0.29650186]
[1750769487030,1.15116179,105180.0,105170.0,0.29650186]
[1750769487448,1.15116179,105180.0,105170.0,0.09650186]
[1750769488323,1.15116179,105180.0,105170.0,0.29617856]
[1750769488536,1.15116179,105180.0,105170.0,0.31519511]
[1750769488763,1.14165428,105180.0,105170.0,0.09650186]
[1750769490755,1.14165428,105180.0,105170.0,0.001]
[1750769498699,1.64899513,105180.0,105170.0,0.001]
[1750769499573,0.57157652,105170.0,105160.0,0.00046136]
[1750769499775,0.85552209,105170.0,105160.0,0.00046136]
[1750769501641,0.85652209,105170.0,105160.0,0.00046136]
[1750769501835,0.85752209,105170.0,105160.0,0.00046136]
[1750769502583,0.88609209,105170.0,105160.0,0.00046136]
[1750769503260,0.89560023,105170.0,105160.0,0.19064774]
[1750769503496,0.88609209,105170.0,105160.0,0.00046136]
[1750769511865,0.88609209,105170.0,105160.0,0.19064774]
[1750769512074,0.85419209,105170.0,105160.0,0.49565873]
[1750769512465,0.85419209,105170.0,105160.0,0.51467645]
[1750769512978,0.85419209,105170.0,105160.0,0.51467654]
[1750769513178,0.85419209,105170.0,105160.0,0.29596322]
[1750769513646,0.88579209,105170.0,105160.0,0.29596322]
[1750769516463,0.88579209,105170.0,105160.0,0.00046136]
[1750769522072,1.67707851,105170.0,105160.0,0.00046136]
[1750769523290,1.67707851,105170.0,105160.0,0.00937078]
[1750769523496,0.19969551,105160.0,105150.0,0.0002]
[1750769523703,0.19969551,105160.0,105150.0,0.00028749]
[1750769523704,1.1534275,105160.0,105150.0,0.00028749]
[1750769524763,1.1534275,105160.0,105150.0,0.00128749]
[1750769526560,1.1820025,105160.0,105150.0,0.00128749]
[1750769527903,1.6748025,105160.0,105150.0,0.00128749]
[1750769530334,1.6748025,105160.0,105150.0,0.00228749]
[1750769533355,1.6756025,105160.0,105150.0,0.00228749]
[1750769537558,1.62896165,105160.0,105150.0,0.00228749]
[1750769538226,1.64526165,105160.0,105150.0,0.00228749]
[1750769538546,1.36131608,105160.0,105150.0,0.00228749]
[1750769538750,1.35452512,105160.0,105150.0,0.28799381]
[1750769538953,1.35452512,105160.0,105150.0,0.32930394]
[1750769539176,1.35452512,105160.0,105150.0,0.12958935]
[1750769539407,1.35452512,105160.0,105150.0,0.32930403]
[1750769539632,1.35452512,105160.0,105150.0,0.33881416]
[1750769539866,1.35452512,105160.0,105150.0,0.3483242]
[1750769540539,1.34501608,105160.0,105150.0,0.33881416]
[1750769540776,1.33550695,105160.0,105150.0,0.32930403]
[1750769540998,1.33550695,105160.0,105150.0,0.11408935]
[1750769541243,1.33550695,105160.0,105150.0,0.09778935]
[1750769542755,1.33550695,105160.0,105150.0,0.28799381]
[1750769542956,1.33550695,105160.0,105150.0,0.09778935]
[1750769543173,1.33550695,105160.0,105150.0,0.30419381]
[1750769543377,1.33550695,105160.0,105150.0,0.32990403]
[1750769543580,1.33550695,105160.0,105150.0,0.33941416]
[1750769544065,1.31644108,105160.0,105150.0,0.50843397]
[1750769544494,1.32594994,105160.0,105150.0,0.50843415]
[1750769544703,1.04200437,105160.0,105150.0,0.51794392]
[1750769544919,1.32594994,105160.0,105150.0,0.51794392]
[1750769545353,1.32594994,105160.0,105150.0,0.48554392]
[1750769545770,1.32594994,105160.0,105150.0,0.50204392]
[1750769545980,1.32594994,105160.0,105150.0,0.51704392]
[1750769546562,1.33545925,105160.0,105150.0,0.51704392]
[1750769546759,1.33545925,105160.0,105150.0,0.60704392]
[1750769546963,1.33545925,105160.0,105150.0,0.5975337]
[1750769547174,1.32595039,105160.0,105150.0,0.58802393]
[1750769547647,1.03249569,105160.0,105150.0,0.58802393]
[1750769547852,1.31644126,105160.0,105150.0,0.58802393]
[1750769548146,1.30693195,105160.0,105150.0,0.57851398]
[1750769548346,1.30693195,105160.0,105150.0,0.53750403]
[1750769548803,1.30693195,105160.0,105150.0,0.54701416]
[1750769549957,1.30693195,105160.0,105150.0,0.55652402]
[1750769550207,1.30693195,105160.0,105150.0,0.57272402]
[1750769550837,1.30693195,105160.0,105150.0,0.58922402]
[1750769552258,1.30693195,105160.0,105150.0,0.5892242]
[1750769554111,1.30693195,105160.0,105150.0,0.5727242]
[1750769554322,1.30693195,105160.0,105150.0,0.53750403]
[1750769554526,1.33753195,105160.0,105150.0,0.33778935]
[1750769554827,1.62147752,105160.0,105150.0,0.33778935]
[1750769555331,1.33753195,105160.0,105150.0,0.33778935]
[1750769555538,1.33753195,105160.0,105150.0,0.52799381]
[1750769555716,1.30693195,105160.0,105150.0,0.52799381]
[1750769555918,1.30693195,105160.0,105150.0,0.53750403]
[1750769556138,1.30693195,105160.0,105150.0,0.33778935]
[1750769556497,1.59087752,105160.0,105150.0,0.33778935]
[1750769557080,1.30693195,105160.0,105150.0,0.33778935]
[1750769557210,1.30693195,105160.0,105150.0,0.52799381]
[1750769557571,1.30693195,105160.0,105150.0,0.53750403]
[1750769558923,1.30693195,105160.0,105150.0,0.57810403]
[1750769559606,1.30693195,105160.0,105150.0,0.58761416]
[1750769560721,1.30693195,105160.0,105150.0,0.5971242]
[1750769561923,1.30693195,105160.0,105150.0,0.6360842]
[1750769562128,1.31644126,105160.0,105150.0,0.6360842]
[1750769562329,1.3259503,105160.0,105150.0,0.66159397]
[1750769563293,1.3259503,105160.0,105150.0,0.67819397]
[1750769565754,1.3259503,105160.0,105150.0,0.59863397]
[1750769566837,0.25123829,105170.0,105160.0,0.36871323]
[1750769566838,0.02857,105170.0,105160.0,0.36871323]
[1750769567043,0.34591382,105190.0,105180.0,0.41867164]
[1750769567249,0.57411547,105190.0,105180.0,0.54526663]
[1750769567415,0.90460959,105190.0,105180.0,0.54526672]
[1750769567616,0.71447745,105190.0,105180.0,0.55477386]
[1750769567847,0.71447727,105190.0,105180.0,0.58088073]
[1750769568058,0.37447727,105190.0,105180.0,0.59738073]
[1750769568262,0.71447727,105190.0,105180.0,0.59738073]
[1750769568467,0.68591427,105190.0,105180.0,0.59738073]
[1750769569124,0.68591427,105190.0,105180.0,0.58088091]
[1750769569274,0.67740785,105190.0,105180.0,0.59038732]
[1750769569677,0.67840785,105190.0,105180.0,0.59038732]
[1750769569892,0.67840785,105190.0,105180.0,0.58088045]
[1750769570087,0.67840785,105190.0,105180.0,0.59038732]
[1750769570352,0.6784074,105190.0,105180.0,0.59038732]
[1750769570559,0.39446183,105190.0,105180.0,0.59038732]
[1750769570873,0.6784074,105190.0,105180.0,0.59038732]
[1750769571289,0.66890125,105190.0,105180.0,0.60538732]
[1750769571514,0.65939537,105190.0,105180.0,0.75538732]
[1750769572588,0.65839537,105190.0,105180.0,0.75538732]
[1750769572981,0.65839537,105190.0,105180.0,0.75738732]
[1750769572982,0.3744498,105190.0,105180.0,0.75738732]
[1750769573218,0.3734498,105190.0,105180.0,0.75738732]
[1750769573450,0.3734498,105190.0,105180.0,0.76038732]
[1750769573655,0.342,105190.0,105180.0,0.76038732]
[1750769575838,0.62594557,105190.0,105180.0,0.76038732]
[1750769579695,0.342,105190.0,105180.0,0.76038732]
[1750769585093,0.002,105190.0,105180.0,0.76038732]
[1750769585294,0.002,105190.0,105180.0,1.69381931]
[1750769586159,0.002,105190.0,105180.0,2.39381931]
[1750769587039,0.002,105190.0,105180.0,2.39181931]
[1750769587370,0.019,105190.0,105180.0,2.39281931]
[1750769587582,0.019,105190.0,105180.0,1.68981931]
[1750769588013,0.035,105190.0,105180.0,1.69181931]
[1750769588645,0.035,105190.0,105180.0,1.55787374]
[1750769589040,0.035,105190.0,105180.0,1.55763374]
[1750769589695,0.035,105190.0,105180.0,1.51727374]
[1750769589921,0.035,105190.0,105180.0,1.55763374]
[1750769590160,0.035,105190.0,105180.0,1.27368817]
[1750769590347,0.035,105190.0,105180.0,1.55763374]
[1750769590615,0.035,105190.0,105180.0,2.25763374]
[1750769592045,0.035,105190.0,105180.0,2.54157931]
[1750769593964,0.035,105190.0,105180.0,2.25763374]
[1750769594768,0.035,105190.0,105180.0,2.54157931]
[1750769597799,0.035,105190.0,105180.0,2.25763374]
[1750769598256,0.035,105190.0,105180.0,2.54157931]
[1750769603419,0.035,105190.0,105180.0,2.74157931]
[1750769604242,0.035,105190.0,105180.0,2.74057931]
[1750769604441,0.035,105190.0,105180.0,2.21627374]
[1750769604650,0.035,105190.0,105180.0,2.25663374]
[1750769605731,0.035,105190.0,105180.0,2.54057931]
[1750769607506,0.035,105190.0,105180.0,1.84057931]
[1750769608784,0.035,105190.0,105180.0,1.93057931]
[1750769608997,0.035,105190.0,105180.0,2.03057931]
[1750769609220,0.035,105190.0,105180.0,2.05912531]
[1750769609623,0.035,105190.0,105180.0,2.39912531]
[1750769609858,0.035,105190.0,105180.0,2.54912531]
[1750769610488,0.035,105190.0,105180.0,3.24912531]
[1750769612032,0.035,105190.0,105180.0,3.19912531]
[1750769612265,0.035,105190.0,105180.0,3.24912531]
[1750769613560,0.035,105190.0,105180.0,3.19912531]
[1750769613778,0.035,105190.0,105180.0,3.24912531]
[1750769615322,0.01337571,105190.0,105180.0,3.24912531]
[1750769616472,0.01337571,105190.0,105180.0,3.20876531]
[1750769616690,0.01337571,105190.0,105180.0,2.26013289]
[1750769616908,0.01337571,105190.0,105180.0,2.30041289]
[1750769617129,0.01337571,105190.0,105180.0,2.36495374]
[1750769617576,0.01337571,105190.0,105180.0,2.31013289]
[1750769617800,0.01337571,105190.0,105180.0,2.35041289]
[1750769618228,0.01337571,105190.0,105180.0,2.31495374]
[1750769621520,0.01337571,105190.0,105180.0,1.97618732]
[1750769621737,0.04377571,105190.0,105180.0,2.01646732]
[1750769623252,0.04377571,105190.0,105180.0,1.31646732]
[1750769626127,0.04377571,105190.0,105180.0,1.27618732]
[1750769626360,0.04377571,105190.0,105180.0,2.01646732]
[1750769628118,0.04377571,105190.0,105180.0,2.16646732]
[1750769629205,0.04377571,105190.0,105180.0,1.46646732]
[1750769635606,0.32772128,105190.0,105180.0,1.06646732]
[1750769636038,0.38377571,105190.0,105180.0,1.06646732]
[1750769641538,0.68673313,105190.0,105180.0,1.06646732]
[1750769641768,0.69623946,105190.0,105180.0,1.06646732]
[1750769641989,0.70574588,105190.0,105180.0,1.06646732]